{"text_format":"1","workbook":"xlsx","n_sheets":1,"sheets":["Gradient"],"not_rendered":{"charts":0,"images":1,"macros":1,"external_links":0,"defined_names":2,"comments":0,"pivot_tables":0},"unopened":[],"bounds":{"document_bytes":16777216,"sheet_cells":100000,"rows_first":2000,"rows_last":500,"rows_between":2000,"halvings":0,"cell_chars":16384,"cell_head_chars":4096},"cells_cut":0,"cells_raw":0,"read":"whole","date_system":"1900"}

{"sheet":"Gradient","index":0,"n_rows":41,"n_cols":54,"rows_kept":41,"cut":false,"hidden":false,"merged":[[31,35,31,38],[30,27,30,29],[27,31,29,32],[40,28,40,37],[9,18,9,21],[21,18,21,21],[30,18,30,21],[1,1,4,42],[21,33,21,35],[7,24,7,25],[18,27,18,28],[28,39,30,41],[39,18,39,21],[9,12,10,17],[10,18,10,21],[39,13,39,17],[39,38,39,39],[21,15,21,17],[30,13,30,17]]}
[]
[null,"N4 Lifeskills - Gradient                                                                                                                                                                   Created by Mr.Lafferty@mathsrevision.com                                                                                                                                                          "]
[]
[]
[]
[]
[null,{"$f":"\"Q1.  Fill in the missing words.\"","v":"Q1.  Fill in the missing words."}]
[]
[]
[null,null,null,null,null,null,null,null,null,null,null,null,"Gradient =",null,null,null,null,null,null,null,null,null,null,null,null,null,null,null,null,null,null,null,null,null,null,null,null,null,null,null,null,null,null,null,null,null,null,null,null,null,null,"Vertical"]
[null,null,null,null,null,null,null,null,null,null,null,null,null,null,null,null,null,null,null,null,null,null,null,null,null,null,null,null,null,null,null,null,null,null,null,null,null,null,null,null,null,null,null,null,null,null,null,null,null,null,null,"Horizontal"]
[]
[]
[]
[]
[]
[]
[null,{"$f":"\"Q2.  Find the gradient of the slope correct to 2 decimal places.\"","v":"Q2.  Find the gradient of the slope correct to 2 decimal places."},null,null,null,null,null,null,null,null,null,null,null,null,null,null,null,null,null,null,null,null,null,null,null,null,null,null,null,null,null,null,null,null,null,null,null,null,null,null,null,null,null,null,null,null,null,null,null,null,null,{"$f":"ROUND(RAND()*(20-2)+2,0)","v":20}]
[null,null,null,null,null,null,null,null,null,null,null,null,null,null,null,null,null,null,null,null,null,null,null,null,null,null,null,null,null,null,null,null,null,null,null,null,null,null,null,{"$f":"AZ18","v":20},null,null,null,null,null,null,null,null,null,null,null,{"$f":"AZ18+ROUND(RAND()*(20-2)+2,0)","v":36}]
[]
[]
[null,null,null,null,null,null,null,null,null,null,null,null,null,null,null,"m =",null,null,null,null,null,null,null,null,null,null,null,null,null,null,null,null,null,{"$f":"AZ19","v":36},null,null,null,null,null,null,null,null,null,null,null,null,null,null,null,null,null,{"$f":"ROUND(AZ18/AZ19,2)","v":0.56000000000000005}]
[]
[]
[]
[]
[null,null,null,null,null,null,null,null,null,null,null,null,null,null,null,null,null,null,null,null,null,null,null,null,null,null,null,null,null,null,null,null,null,null,null,null,null,null,null,null,null,null,null,null,null,null,null,null,null,null,null,{"$f":"ROUND(RAND()*(20-2)+2,0)","v":14},{"$f":"ROUND(RAND()*(1-0)+0,0)","v":0}]
[null,{"$f":"\"Q3.  Are the two gradients equal.\"","v":"Q3.  Are the two gradients equal."},null,null,null,null,null,null,null,null,null,null,null,null,null,null,null,null,null,null,null,null,null,null,null,null,null,null,null,null,null,{"$f":"AZ27","v":14},null,null,null,null,null,null,null,null,null,null,null,null,null,null,null,null,null,null,null,{"$f":"AZ27+ROUND(RAND()*(20-2)+2,0)","v":19},{"$f":"ROUND(RAND()*(10-2)+2,0)","v":8}]
[null,null,null,null,null,null,null,null,null,null,null,null,null,null,null,null,null,null,null,null,null,null,null,null,null,null,null,null,null,null,null,null,null,null,null,null,null,null,null,{"$f":"AZ29","v":29},null,null,null,null,null,null,null,null,null,null,null,{"$f":"IF(BA27=1,AZ27*BA28,AZ27+15)","v":29}]
[null,null,null,null,null,null,null,null,null,null,null,null,null,null,null,null,null,null,null,null,null,null,null,null,null,null,null,null,null,null,null,null,null,null,null,null,null,null,null,null,null,null,null,null,null,null,null,null,null,null,null,{"$f":"IF(BA27=1,AZ28*BA28,AZ28+10)","v":29}]
[null,null,null,null,null,null,null,null,null,null,null,null,null,"Answer =",null,null,null,null,null,null,null,null,null,null,null,null,null,{"$f":"AZ28","v":19},null,null,null,null,null,null,null,null,null,null,null,null,null,null,null,null,null,null,null,null,null,null,null,{"$f":"ROUND(AZ27/AZ28,2)","v":0.74}]
[null,null,null,null,null,null,null,null,null,null,null,null,null,null,null,null,null,null,null,null,null,null,null,null,null,null,null,null,null,null,null,null,null,null,null,{"$f":"AZ30","v":29},null,null,null,null,null,null,null,null,null,null,null,null,null,null,null,{"$f":"ROUND(AZ29/AZ30,2)","v":1}]
[null,null,null,null,null,null,null,null,null,null,null,null,null,null,null,null,null,null,null,null,null,null,null,null,null,null,null,null,null,null,null,null,null,null,null,null,null,null,null,null,null,null,null,null,null,null,null,null,null,null,null,{"$f":"IF(AZ31=AZ32,\"Yes\",\"No\")","v":"No"}]
[]
[null,null,null,null,null,null,null,null,null,null,null,null,null,null,null,null,null,null,null,null,null,null,null,null,null,null,null,null,null,null,null,null,null,null,null,null,null,null,null,null,null,null,null,null,null,null,null,null,null,null,{"$f":"1/AZ35","v":7.1428571428571426E-3},{"$f":"ROUND(RAND()*(20-10)+10,0)*10","v":140},{"$f":"ROUND(RAND()*(1-0)+0,0)","v":1},{"$f":"CONCATENATE(AZ35,\"cm\")","v":"140cm"}]
[null,{"$f":"\"Q4.  For Health & Safety reasons a ramp cannot have a gradient of more than \"&AZ38","v":"Q4.  For Health & Safety reasons a ramp cannot have a gradient of more than 0.47"},null,null,null,null,null,null,null,null,null,null,null,null,null,null,null,null,null,null,null,null,null,null,null,null,null,null,null,null,null,null,null,null,null,null,null,null,null,null,null,null,null,null,null,null,null,null,null,null,null,{"$f":"ROUND(RAND()*(60-30)+30,0)*10","v":320},null,{"$f":"CONCATENATE(AZ36,\"cm\")","v":"320cm"}]
[null,null,null,null,null,null,null,null,null,null,null,null,null,null,null,null,null,null,null,null,null,null,null,null,null,null,null,null,null,null,null,null,null,null,null,null,null,null,null,null,null,null,null,null,null,null,null,null,null,null,null,{"$f":"ROUND(AZ35/AZ36,2)","v":0.44}]
[null,null,null,"Will this ramp pass a Health & Safety inspection ?",null,null,null,null,null,null,null,null,null,null,null,null,null,null,null,null,null,null,null,null,null,null,null,null,null,null,null,null,null,null,null,null,null,null,null,null,null,null,null,null,null,null,null,null,null,null,null,{"$f":"IF(BA35=0,(AZ37-ROUND(RAND()*(0.09-0)+0,2)),(AZ37+ROUND(RAND()*(0.09-0)+0,2)))","v":0.47}]
[]
[null,null,null,null,null,null,null,null,null,null,null,null,null,"Answer =",null,null,null,null,null,null,null,null,null,null,null,null,null,null,null,null,null,null,null,null,null,null,null,null,{"$f":"BB35","v":"140cm"}]
[null,null,null,null,null,null,null,null,null,null,null,null,null,null,null,null,null,null,null,null,null,null,null,null,null,null,null,null,{"$f":"BB36","v":"320cm"},null,null,null,null,null,null,null,null,null,null,null,null,null,null,null,null,null,null,null,null,null,null,{"$f":"IF(AZ37<=AZ38,\"Yes\",\"No\")","v":"Yes"}]